fUSD/lending_fUSD_20241209
["ID","MTS","AMOUNT","RATE_DAILY","PERIOD"]
[344747273,1733764233615,-7756.88785274,0.00012982,2]
[344747274,1733764233624,-4643.74492443,0.00012985,2]
[344747275,1733764233634,-6191.65989924,0.00012986,2]
[344747276,1733764233643,-10342.51713699,0.00012986,2]
[344747277,1733764233652,-8255.54653232,0.00012987,2]
[344747278,1733764233662,-6191.65989924,0.00012987,2]
[344747279,1733764233671,-4363.24941717,0.00012987,2]
[344747280,1733764233681,-10342.51713699,0.00012988,2]
[344747281,1733764233691,-6191.65989924,0.00012989,2]
[344747282,1733764233701,-156.824474,0.00012989,2]
[344747283,1733764233710,-154.941874,0.00012989,2]
[344747284,1733764233720,-152.302121,0.00012989,2]
[344747285,1733764233729,-152.302121,0.00012989,2]
[344747286,1733764233739,-10342.51713699,0.00012992,2]
[344747287,1733764233749,-4363.24941717,0.00012993,2]
[344747288,1733764233758,-5817.66588955,0.00012995,2]
[344747289,1733764233767,-1039.07664299,0.00012996,2]
[344747290,1733764233786,-3324.17277418,0.00012996,2]
[344747291,1733764233796,-8255.54653232,0.00012996,2]
[344747292,1733764233806,-4643.74492443,0.00012999,2]
[344747293,1733764233815,-7756.88785274,0.00012999,2]
[344747294,1733764233825,-8255.54653232,0.00012999,2]
[344747295,1733764233835,-5817.66588955,0.00012999,2]
[344747296,1733764233845,-450.0,0.00013,2]
[344747297,1733764233855,-200.0,0.00013031,2]
[344747298,1733764233864,-293.34086711,0.00013155,2]
[344747299,1733764233877,-706.65913289,0.00013155,2]
[344747300,1733764233886,-2000.0,0.0001316,2]
[344747301,1733764233896,-250.0,0.00013531,2]
[344747302,1733764233906,-2000.0,0.00013646,2]
[344747303,1733764233916,-500.0,0.00013698,2]
[344747304,1733764233926,-500.0,0.00013698,2]
[344747305,1733764233934,-500.0,0.00013698,2]
[344747306,1733764233947,-142.84086711,0.00013698,2]
[344747307,1733764237755,-357.15913289,0.00013698,2]
[344747308,1733764237765,-500.0,0.00013698,2]
[344747309,1733764237774,-563.8,0.00013698,2]
[344747310,1733764237783,-250.0,0.00013699,2]
[344747311,1733764237792,-100.32486716,0.00013699,2]
[344747312,1733764237804,-399.67513284,0.00013699,2]
[344747313,1733764237813,-180.83,0.00013699,2]
[344747314,1733764237822,-200.0,0.00013699,2]
[344747315,1733764237831,-308.88,0.00013898,2]
[344747316,1733764237839,-322.19,0.00013916,2]
[344747317,1733764237849,-150.0,0.00013916,2]
[344747318,1733764237858,-410.00486716,0.00013916,2]
[344747319,1733764237873,-687.99513284,0.00013916,2]
[344747320,1733764237882,-150.0,0.00013945,2]
[344747321,1733764237892,-420.0,0.00014092,2]
[344747322,1733764237901,-940.99243501,0.00014133,2]
[344747323,1733764237925,-1059.00756499,0.00014133,2]
[344747324,1733764237934,-630.0,0.00014215,2]
[344747325,1733764237943,-1031.657,0.00014215,2]
[344747326,1733764237953,-402.369,0.00014215,2]
[344747327,1733764237962,-150.0,0.00014529,2]
[344747328,1733764237971,-1826.00777764,0.0001462,2]
[344747329,1733764237983,-173.99222236,0.0001462,2]
[344747330,1733764237994,-346.84,0.00014732,2]
[344747331,1733764238003,-112.17227564,0.00014799,2]
[344747332,1733764238043,-887.82772436,0.00014799,2]
[344747333,1733764238052,-214.33347733,0.000149,2]
[344747334,1733764238061,-460.45,0.00015,2]
[344747335,1733764238070,-800.0,0.00015,2]
[344747336,1733764238093,-800.0,0.00015,2]
[344747337,1733764238103,-800.0,0.00015,2]
[344747338,1733764238112,-800.0,0.00015,2]
[344747339,1733764238122,-268.75592933,0.00015,2]
[344747341,1733764239815,-531.24407067,0.00015,2]
[344747342,1733764239825,-800.0,0.00015,2]
[344747343,1733764239839,-500.0,0.00015,2]
[344747344,1733764239848,-2000.0,0.00015107,2]
[344747345,1733764239858,-587.0,0.00015457,2]
[344747346,1733764239867,-150.138,0.00015646,2]
[344747347,1733764239876,-9999.99,0.00016116,2]
[344747348,1733764239886,-2253.05,0.00016438,2]
[344747349,1733764239895,-283.12633139,0.00016438,2]
[344747350,1733764239997,-559.90858216,0.00016438,2]
[344747351,1733764240055,-1410.01508645,0.00016438,2]
[344747352,1733764240226,-1043.20630793,0.00016438,2]
[344747353,1733764240246,-1209.84369207,0.00016438,2]
[344747354,1733764240255,-2253.05,0.00016438,2]
[344747355,1733764240265,-2253.05,0.00016438,2]
[344747356,1733764240274,-2253.05,0.00016438,2]
[344747357,1733764240283,-2253.05,0.00016438,2]
[344747358,1733764240292,-2253.05,0.00016438,2]
[344747359,1733764240302,-2253.05,0.00016438,2]
[344747360,1733764240311,-2253.05,0.00016438,2]
[344747361,1733764240321,-1733.36113583,0.00016438,2]
[344747368,1733764242922,-519.68886417,0.00016438,2]
[344747370,1733764242931,-2253.05,0.00016438,2]
[344747372,1733764242941,-1227.26113583,0.00016438,2]
[344747374,1733764242956,-360.20251,0.00016438,2]
[344747426,1733764268109,-665.58635417,0.00016438,2]
[344747427,1733764268119,-2253.05,0.00016438,2]
[344747428,1733764268128,-2253.05,0.00016438,2]
[344747429,1733764268137,-2253.05,0.00016438,2]
[344747430,1733764268147,-2253.05,0.00016438,2]
[344747431,1733764268156,-2253.05,0.00016438,2]
[344747432,1733764268166,-2253.05,0.00016438,2]
[344747433,1733764268175,-2253.05,0.00016438,2]
[344747434,1733764268184,-2253.05,0.00016438,2]
[344747435,1733764268193,-2253.05,0.00016438,2]
[344747436,1733764268201,-2253.05,0.00016438,2]
[344747437,1733764268211,-2253.05702212,0.00016438,2]
[344747438,1733764268221,-1000.0,0.00016444,2]
[344747439,1733764268230,-831.51,0.00016658,30]
[344747440,1733764268239,-1000.0,0.00016658,2]
[344747441,1733764268248,-150.0,0.00016791,2]
[344747442,1733764268257,-180.83,0.00016895,2]
[344747443,1733764268267,-150.0,0.00016916,2]
[344747444,1733764268276,-1098.0,0.00016916,2]
[344747445,1733764268284,-823.0,0.00016954,2]
[344747446,1733764268294,-346.84,0.00016996,2]
[344747447,1733764268303,-550.0,0.00017,2]
[344747448,1733764268312,-1600.0,0.00017534,2]
[344747449,1733764268372,-300.0,0.00018011,2]
[344747450,1733764268382,-1000.0,0.00018088,2]
[344747451,1733764268391,-1600.0,0.00018183,2]
[344747452,1733764268400,-771.5,0.00018533,2]
[344747453,1733764268409,-1152.0,0.00018596,2]
[344747454,1733764268418,-1000.0,0.00018741,2]
[344747455,1733764268426,-202.3,0.000188,2]
[344747456,1733764268434,-202.3,0.000188,2]
[344747457,1733764268443,-1600.0,0.00018832,2]
[344747458,1733764268453,-600.0,0.00019,2]
[344747459,1733764268462,-4000.0,0.00019178,2]
[344747460,1733764268471,-831.51,0.00019242,30]
[344747461,1733764268481,-346.84,0.0001926,2]
[344747462,1733764268490,-300.0,0.00019381,2]
[344747463,1733764268499,-1600.0,0.00019481,2]
[344747464,1733764268508,-1100.29163791,0.000196,2]
[344747465,1733764268517,-1000.0,0.00019732,2]
[344747466,1733764268527,-150.0,0.00019916,2]
[344747467,1733764268536,-536.942,0.00019916,2]
[344747468,1733764268545,-180.83,0.00020091,2]
[344747469,1733764268554,-1600.0,0.00020129,2]
[344747470,1733764268563,-1381.35,0.000202,7]
[344747471,1733764268571,-1613.0,0.00020396,2]
[344747472,1733764268580,-1000.0,0.00020823,2]
[344747473,1733764268589,-500.0,0.00020943,2]
[344747474,1733764268601,-1200.0,0.00020943,2]
[344747475,1733764268610,-5000.0,0.00020943,2]
[344747476,1733764268620,-500.0,0.00020999,2]
[344747477,1733764268629,-500.0,0.00020999,2]
[344747478,1733764268638,-500.0,0.00020999,2]
[344747479,1733764268648,-500.0,0.00020999,2]
[344747480,1733764268657,-500.0,0.00020999,2]
[344747481,1733764268666,-500.0,0.00020999,2]
[344747482,1733764268675,-500.0,0.00020999,2]
[344747483,1733764268685,-500.0,0.00020999,2]
[344747484,1733764268694,-500.0,0.00020999,2]
[344747485,1733764268703,-564.47,0.00020999,2]
[344747486,1733764268712,-500.0,0.00020999,2]
[344747487,1733764268722,-500.0,0.00020999,2]
[344747488,1733764268731,-500.0,0.00020999,2]
[344747489,1733764268740,-500.0,0.00020999,2]
[344747490,1733764268749,-500.0,0.00020999,2]
[344747491,1733764268758,-500.0,0.00020999,2]
[344747492,1733764268767,-500.0,0.00020999,2]
[344747493,1733764268776,-500.0,0.00020999,2]
[344747494,1733764268786,-500.0,0.00020999,2]
[344747495,1733764268795,-500.0,0.00020999,2]
[344747496,1733764268804,-500.0,0.00020999,2]
[344747497,1733764268813,-3000.0,0.00021,2]
[344747498,1733764268823,-650.0,0.00021,2]
[344747499,1733764268832,-300.0,0.000214,120]
[344747500,1733764268842,-151.24773933,0.00021509,2]
[344747501,1733764268853,-346.84,0.00021524,2]
[344747502,1733764268863,-500.0,0.00021808,2]
[344747503,1733764268876,-500.0,0.00021808,2]
[344747504,1733764268886,-500.0,0.00021808,2]
[344747505,1733764268895,-500.0,0.00021808,2]
[344747506,1733764268903,-500.0,0.00021808,2]
[344747507,1733764268912,-500.0,0.00021808,2]
[344747508,1733764268922,-500.0,0.00021808,2]
[344747509,1733764268931,-500.0,0.00021808,2]
[344747510,1733764268941,-500.0,0.00021808,2]
[344747511,1733764268952,-500.0,0.00021808,2]
[344747512,1733764268965,-500.0,0.00021808,2]
[344747513,1733764268974,-500.0,0.00021808,2]
[344747514,1733764268984,-500.0,0.00021808,2]
[344747515,1733764268994,-500.0,0.00021808,2]
[344747516,1733764269003,-514.7,0.00021808,2]
[344747517,1733764269012,-500.0,0.00021808,2]
[344747518,1733764269023,-590.76,0.00021808,2]
[344747519,1733764269033,-831.51,0.00021826,30]
[344747520,1733764269042,-200.0,0.000219,2]
[344747521,1733764269051,-2869.05,0.00021907,2]
[344747522,1733764269061,-2869.05,0.00021907,2]
[344747523,1733764269071,-500.0,0.00021916,2]
[344747524,1733764269080,-500.0,0.00021916,2]
[344747525,1733764269090,-500.0,0.00021916,2]
[344747526,1733764269102,-500.0,0.00021916,2]
[344747527,1733764269111,-500.0,0.00021916,2]
[344747528,1733764269121,-500.0,0.00021917,2]
[344747529,1733764269131,-500.0,0.00021917,2]
[344747530,1733764269140,-500.0,0.00021917,2]
[344747531,1733764269149,-500.0,0.00021917,2]
[344747532,1733764269159,-500.0,0.00021917,2]
[344747533,1733764269169,-500.0,0.00021917,2]
[344747534,1733764269179,-500.0,0.00021917,2]
[344747535,1733764269188,-500.0,0.00021917,2]
[344747536,1733764269198,-500.0,0.00021917,2]
[344747537,1733764269208,-500.0,0.00021917,2]
[344747538,1733764269217,-500.0,0.00021917,2]
[344747539,1733764269227,-500.0,0.00021917,2]
[344747540,1733764269236,-500.0,0.00021917,2]
[344747541,1733764269245,-500.0,0.00021917,2]
[344747542,1733764269254,-500.0,0.00021917,2]
[344747543,1733764269263,-500.0,0.00021917,2]
[344747544,1733764269273,-500.0,0.00021917,2]
[344747545,1733764269284,-500.0,0.00021917,2]
[344747546,1733764269293,-500.0,0.00021917,2]
[344747547,1733764269303,-500.0,0.00021917,2]
[344747548,1733764269312,-500.0,0.00021917,2]
[344747549,1733764269322,-500.0,0.00021917,2]
[344747550,1733764269332,-500.0,0.00021917,2]
[344747551,1733764269341,-500.0,0.00021917,2]
[344747552,1733764269354,-500.0,0.00021917,2]
[344747553,1733764269363,-500.0,0.00021917,2]
[344747554,1733764269373,-500.0,0.00021917,2]
[344747555,1733764269382,-500.0,0.00021917,2]
[344747556,1733764269391,-500.0,0.00021917,2]
[344747557,1733764269401,-500.0,0.00021917,2]
[344747558,1733764269410,-500.0,0.00021917,2]
[344747559,1733764269420,-500.08583974,0.00021917,2]
[344747560,1733764269430,-500.0,0.00021917,2]
[344747561,1733764269440,-502.34724049,0.00021917,2]
[344747562,1733764269449,-500.0,0.00021917,2]
[344747563,1733764269459,-500.0,0.00021917,2]
[344747564,1733764269468,-500.0,0.00021917,2]
[344747565,1733764269478,-500.0,0.00021917,2]
[344747566,1733764269488,-500.0,0.00021917,2]
[344747567,1733764269497,-500.0,0.00021917,2]
[344747568,1733764269506,-500.0,0.00021917,2]
[344747569,1733764269515,-500.0,0.00021917,2]
[344747570,1733764269525,-500.0,0.00021917,2]
[344747571,1733764269534,-500.0,0.00021917,2]
[344747572,1733764269544,-500.0,0.00021917,2]
[344747573,1733764269554,-500.0,0.00021917,2]
[344747574,1733764269563,-500.0,0.00021917,2]
[344747575,1733764269571,-500.0,0.00021917,2]
[344747576,1733764269581,-214.87359989,0.00021917,2]
[344747577,1733764269590,-500.0,0.00021917,2]
[344747578,1733764269601,-500.0,0.00021917,2]
[344747579,1733764269611,-500.0,0.00021917,2]
[344747580,1733764269620,-500.0,0.00021917,2]
[344747581,1733764269629,-500.0,0.00021917,2]
[344747582,1733764269639,-500.0,0.00021917,2]
[344747583,1733764269649,-500.0,0.00021917,2]
[344747584,1733764269658,-500.0,0.00021917,2]
[344747585,1733764269667,-500.0,0.00021917,2]
[344747586,1733764269677,-501.04959247,0.00021917,2]
[344747587,1733764269687,-500.0,0.00021917,2]
[344747588,1733764269697,-500.0,0.00021917,2]
[344747589,1733764269707,-500.0,0.00021917,2]
[344747590,1733764269717,-500.0,0.00021917,2]
[344747591,1733764269726,-500.0,0.00021917,2]
[344747592,1733764269736,-500.0,0.00021917,2]
[344747593,1733764269745,-500.0,0.00021917,2]
[344747594,1733764269755,-500.0,0.00021917,2]
[344747595,1733764269765,-500.0,0.00021917,2]
[344747596,1733764269775,-500.0,0.00021917,2]
[344747597,1733764269784,-500.0,0.00021917,2]
[344747598,1733764269793,-500.0,0.00021917,2]
[344747599,1733764269803,-500.0,0.00021917,2]
[344747600,1733764269813,-500.0,0.00021917,2]
[344747601,1733764269823,-500.0,0.00021917,2]
[344747602,1733764269833,-500.0,0.00021917,2]
[344747603,1733764269843,-500.0,0.00021917,2]
[344747604,1733764269855,-500.0,0.00021917,2]
[344747605,1733764269865,-209.38474411,0.00021917,2]
[344747606,1733764269876,-500.0,0.00021917,2]
[344747607,1733764269886,-500.0,0.00021917,2]
[344747608,1733764269895,-503.2,0.00021917,2]
[344747609,1733764269904,-500.0,0.00021917,2]
[344747610,1733764269914,-500.0,0.00021917,2]
[344747611,1733764269923,-500.0,0.00021917,2]
[344747612,1733764269933,-500.7642867,0.00021917,2]
[344747613,1733764269942,-500.0,0.00021917,2]
[344747614,1733764269954,-500.0,0.00021917,2]
[344747615,1733764269964,-500.0,0.00021917,2]
[344747616,1733764269973,-500.0,0.00021917,2]
[344747617,1733764269983,-500.0,0.00021917,2]
[344747618,1733764269992,-500.0,0.00021917,2]
[344747619,1733764270003,-500.0,0.00021917,2]
[344747620,1733764270012,-500.0,0.00021917,2]
[344747621,1733764270022,-500.0,0.00021917,2]
[344747622,1733764270033,-500.0,0.00021917,2]
[344747623,1733764270042,-500.0,0.00021917,2]
[344747624,1733764270051,-500.0,0.00021917,2]
[344747625,1733764270061,-500.0,0.00021917,2]
[344747626,1733764270070,-500.0,0.00021917,2]
[344747627,1733764270079,-500.0,0.00021917,2]
[344747628,1733764270089,-500.0,0.00021917,2]
[344747629,1733764270100,-500.0,0.00021917,2]
[344747630,1733764270109,-500.0,0.00021917,2]
[344747631,1733764270119,-500.0,0.00021917,2]
[344747632,1733764270129,-500.0,0.00021917,2]
[344747633,1733764270139,-500.0,0.00021917,2]
[344747634,1733764270148,-500.0,0.00021917,2]
[344747635,1733764270157,-500.0,0.00021917,2]
[344747636,1733764270167,-500.0,0.00021917,2]
[344747637,1733764270176,-502.93773467,0.00021917,2]
[344747638,1733764270185,-500.0,0.00021917,2]
[344747639,1733764270194,-500.0,0.00021917,2]
[344747640,1733764270204,-500.0,0.00021917,2]
[344747641,1733764270214,-500.0,0.00021917,2]
[344747642,1733764270223,-500.0,0.00021917,2]
[344747643,1733764270232,-500.0,0.00021917,2]
[344747644,1733764270242,-500.0,0.00021917,2]
[344747645,1733764270251,-500.0,0.00021917,2]
[344747646,1733764270261,-500.0,0.00021917,2]
[344747647,1733764270270,-1000.0,0.00021917,2]
[344747648,1733764270280,-500.0,0.00021917,2]
[344747649,1733764270289,-500.0,0.00021917,2]
[344747650,1733764270298,-500.0,0.00021917,2]
[344747651,1733764270308,-500.0,0.00021917,2]
[344747652,1733764270317,-500.0,0.00021917,2]
[344747653,1733764270327,-2500.0,0.00021917,120]
[344747654,1733764270336,-500.0,0.00021917,2]
[344747655,1733764270347,-500.0,0.00021917,2]
[344747656,1733764270357,-500.0,0.00021917,2]
[344747657,1733764270367,-500.0,0.00021917,2]
[344747658,1733764270377,-500.0,0.00021917,2]
[344747659,1733764270387,-258.47082912,0.00021917,2]
[344747660,1733764270397,-500.0,0.00021917,2]
[344747661,1733764270407,-500.65393246,0.00021917,2]
[344747662,1733764270416,-500.0,0.00021917,2]
[344747663,1733764270426,-500.0,0.00021917,2]
[344747664,1733764270437,-500.0,0.00021917,2]
[344747665,1733764270447,-500.0,0.00021917,2]
[344747666,1733764270456,-500.0,0.00021917,2]
[344747667,1733764270466,-500.0,0.00021917,2]
[344747668,1733764270475,-500.0,0.00021917,2]
[344747669,1733764270484,-500.0,0.00021917,2]
[344747670,1733764270494,-500.0,0.00021917,2]
[344747671,1733764270504,-500.0,0.00021917,2]
[344747672,1733764270514,-500.0,0.00021917,2]
[344747673,1733764270524,-500.0,0.00021917,2]
[344747674,1733764270534,-500.0,0.00021917,2]
[344747675,1733764270544,-500.0,0.00021917,2]
[344747676,1733764270554,-500.0,0.00021917,2]
[344747677,1733764270563,-501.75008464,0.00021917,2]
[344747678,1733764270573,-500.0,0.00021917,2]
[344747679,1733764270583,-500.0,0.00021917,2]
[344747680,1733764270593,-500.0,0.00021917,2]
[344747681,1733764270604,-500.0,0.00021917,2]
[344747682,1733764270613,-500.0,0.00021917,2]
[344747683,1733764270623,-500.0,0.00021917,2]
[344747684,1733764270633,-500.0,0.00021917,2]
[344747685,1733764270642,-500.0,0.00021917,2]
[344747686,1733764270651,-500.0,0.00021917,2]
[344747687,1733764270661,-500.0,0.00021917,2]
[344747688,1733764270670,-500.0,0.00021917,2]
[344747689,1733764270680,-500.0,0.00021917,2]
[344747690,1733764270690,-500.0,0.00021917,2]
[344747691,1733764270699,-500.0,0.00021917,2]
[344747692,1733764270709,-500.0,0.00021917,2]
[344747693,1733764270720,-500.0,0.00021917,2]
[344747694,1733764270729,-500.0,0.00021917,2]
[344747695,1733764270739,-500.0,0.00021917,2]
[344747696,1733764270750,-500.0,0.00021917,2]
[344747697,1733764270760,-500.0,0.00021917,2]
[344747698,1733764270770,-427.27805141,0.00021917,2]
[344747699,1733764270779,-500.0,0.00021917,2]
[344747700,1733764270789,-500.0,0.00021917,2]
[344747701,1733764270798,-500.0,0.00021917,2]
[344747702,1733764270808,-500.0,0.00021917,2]
[344747703,1733764270818,-500.0,0.00021917,2]
[344747704,1733764270827,-500.0,0.00021917,2]
[344747705,1733764270837,-500.0,0.00021917,2]
[344747706,1733764270848,-500.0,0.00021917,2]
[344747707,1733764270858,-33877.98,0.00021918,2]
[344747708,1733764270867,-1200.0,0.00022039,2]
[344747709,1733764270877,-5000.0,0.00022039,2]
[344747710,1733764270886,-2258.0,0.00022371,2]
[344747711,1733764270895,-300.0,0.000224,120]
[344747712,1733764270905,-500.0,0.00022455,120]
[344747713,1733764270915,-200.0,0.00022455,120]
[344747714,1733764270924,-998.971771,0.00022601,2]
[344747715,1733764270934,-671.09349402,0.00022899,2]
[344747716,1733764270943,-2000.0,0.000229,2]
[344747717,1733764270956,-1000.0,0.00022905,2]
[344747718,1733764270965,-150.0,0.00022916,2]
[344747719,1733764270975,-2869.05,0.0002299,2]
[344747720,1733764270985,-5800.0,0.00022999,2]
[344747721,1733764270995,-1003.6,0.00023,2]
[344747722,1733764271003,-700.0,0.00023,2]
[344747723,1733764271013,-2000.0,0.00023125,120]
[344747724,1733764271023,-1200.0,0.00023135,2]
[344747725,1733764271034,-5000.0,0.00023135,2]
[344747726,1733764271044,-500.0,0.00023135,2]
[344747727,1733764271054,-180.83,0.00023288,2]
[344747728,1733764271063,-300.0,0.000233,2]
[344747729,1733764271073,-300.0,0.000234,120]
[344747730,1733764271083,-153.0,0.00023417,2]
[344747731,1733764271092,-153.0,0.00023417,2]
[344747732,1733764271105,-153.0,0.00023417,2]
[344747733,1733764271114,-2355.534,0.00023418,3]
[344747734,1733764271124,-153.0,0.00023418,2]
[344747735,1733764271134,-153.0,0.00023418,2]
[344747736,1733764271144,-153.0,0.00023418,2]
[344747737,1733764271153,-170.2298385,0.00023418,3]
[344747738,1733764271163,-153.0,0.00023427,2]
[344747739,1733764271173,-153.0,0.00023427,2]
[344747740,1733764271182,-153.0,0.00023427,2]
[344747741,1733764271192,-153.0,0.00023428,2]
[344747742,1733764271203,-153.0,0.00023428,2]
[344747743,1733764271213,-153.0,0.00023428,2]
[344747744,1733764271223,-153.0,0.00023436,2]
[344747745,1733764271233,-153.0,0.00023436,2]
[344747746,1733764271243,-153.0,0.00023436,2]
[344747747,1733764271253,-153.0,0.00023437,2]
[344747748,1733764271263,-153.0,0.00023437,2]
[344747749,1733764271273,-153.0,0.00023437,2]
[344747750,1733764271283,-153.0,0.00023446,2]
[344747751,1733764271293,-153.0,0.00023446,2]
[344747752,1733764271303,-153.0,0.00023446,2]
[344747753,1733764271312,-153.0,0.00023447,2]
[344747754,1733764271322,-153.0,0.00023447,2]
[344747755,1733764271460,-153.0,0.00023447,2]
[344747756,1733764271470,-671.09349395,0.00023512,2]
[344747757,1733764271480,-195.0,0.00023631,2]
[344747758,1733764271489,-3000.0,0.000237,2]
[344747759,1733764271498,-1815.0,0.00023777,2]
[344747760,1733764271507,-346.84,0.00023788,2]
[344747761,1733764271516,-1815.0,0.00024022,2]
[344747762,1733764271525,-671.09349395,0.00024126,2]
[344747763,1733764271535,-1200.0,0.00024231,2]
[344747764,1733764271544,-5000.0,0.00024231,2]
[344747765,1733764271552,-1815.0,0.00024267,2]
[344747766,1733764271562,-2000.0,0.00024309,2]
[344747767,1733764271571,-775.31060735,0.0002431,2]
[344747768,1733764271580,-509.81875036,0.0002431,2]
[344747769,1733764271590,-408.65065333,0.00024336,2]
[344747770,1733764271600,-1000.0,0.000244,120]
[344747771,1733764271610,-831.51,0.0002441,30]
[344747772,1733764271619,-2000.0,0.00024499,2]
[344747773,1733764271628,-2000.0,0.00024499,2]
[344747774,1733764271637,-2000.0,0.00024499,2]
[344747775,1733764271646,-2000.0,0.00024499,2]
[344747776,1733764271655,-1815.0,0.00024512,2]
[344747777,1733764271665,-719.81232711,0.00024512,2]
[344747778,1733764271674,-1634.0,0.00024538,2]
[344747779,1733764271683,-500.0,0.00024549,2]
[344747780,1733764271693,-408.65065333,0.00024554,2]
[344747781,1733764271703,-2000.0,0.00024657,2]
[344747782,1733764271712,-1000.0,0.00024658,2]
[344747783,1733764271722,-408.65065333,0.0002467,2]
[344747784,1733764271731,-618.0,0.000247,2]
[344747785,1733764271740,-200.0,0.000247,2]
[344747786,1733764271750,-400.0,0.000247,2]
[344747787,1733764271759,-671.09349395,0.00024739,2]
[344747788,1733764271768,-1815.0,0.00024757,2]
[344747789,1733764271777,-551.25672047,0.00024823,2]
[344747790,1733764271787,-2500.0,0.00024832,2]
[344747791,1733764271796,-500.0,0.00024932,2]
[344747792,1733764271805,-1000.0,0.00024988,2]
[344747793,1733764271815,-2000.0,0.00024999,2]
[344747794,1733764271824,-2000.0,0.00024999,2]
[344747795,1733764271833,-150.0,0.00025,2]
[344747796,1733764271842,-1010.56,0.00025,2]
[344747797,1733764271852,-750.0,0.00025,2]
[344747798,1733764271862,-152.302121,0.00025,120]
[344747799,1733764271871,-1815.0,0.00025002,2]
[344747800,1733764271880,-408.65065333,0.00025104,2]
[344747801,1733764271889,-1815.0,0.00025248,2]
[344747802,1733764271898,-280.0,0.000253,10]
[344747803,1733764271907,-500.0,0.00025327,7]
[344747804,1733764271916,-671.09349395,0.00025352,2]
[344747805,1733764271925,-408.65065333,0.00025378,2]
[344747806,1733764271934,-1000.0,0.000254,120]
[344747807,1733764271943,-408.65065333,0.00025495,2]
[344747808,1733764271955,-1151.12,0.000256,14]
[344747809,1733764271963,-150.0,0.00025916,2]
[344747810,1733764271973,-671.09349395,0.00025966,2]
[344747811,1733764271982,-408.65065333,0.00025984,2]
[344747812,1733764271991,-209.70949194,0.00026,2]
[344747813,1733764272002,-408.65065333,0.00026036,2]
[344747814,1733764272012,-346.84,0.00026051,2]
[344747815,1733764272021,-1565.17030486,0.00026271,2]
[344747816,1733764272030,-500.0,0.00026347,120]
[344747817,1733764272039,-2000.0,0.00026347,120]
[344747818,1733764272048,-500.0,0.00026347,120]
[344747819,1733764272057,-200.0,0.00026347,120]
[344747820,1733764272066,-1010.56,0.0002639,2]
[344747821,1733764272075,-1000.0,0.000264,120]
[344747822,1733764272084,-1200.0,0.00026423,7]
[344747823,1733764272093,-5000.0,0.00026423,7]
[344747824,1733764272104,-408.65065333,0.00026438,2]
[344747825,1733764272113,-1500.0,0.0002647,2]
[344747826,1733764272122,-180.83,0.00026484,2]
[344747827,1733764272131,-1108.7,0.00026485,7]
[344747828,1733764272140,-1108.7,0.00026485,7]
[344747829,1733764272149,-1108.7,0.00026485,7]
[344747830,1733764272158,-1108.7,0.00026485,7]
[344747831,1733764272166,-3000.0,0.000265,2]
[344747832,1733764272176,-671.09349395,0.00026579,2]
[344747833,1733764272185,-1500.0,0.00026745,2]